bitfinex-derivatives/quotes_SOLF0:USTF0_20250227
["timestamp","ask_amount","ask_price","bid_price","bid_amount"]
[1740616539914,1.9005,135.38,135.22,1.35974334]
[1740616540113,1.9005,135.38,135.23,1.47896176]
[1740616540411,1.9459,135.39,135.24,1.35974334]
[1740616540612,0.05042206,135.32,135.29,0.04771214]
[1740616540806,193.912,135.42,135.29,12.44771214]
[1740616541011,193.912,135.42,135.3,2.0586]
[1740616541411,7.3963,135.39,135.31,7.4001]
[1740616541608,193.912,135.42,135.25,2.0005]
[1740616541813,2.0194,135.38,135.25,2.0005]
[1740616542008,7.4544994,135.35,135.32,0.04906369]
[1740616542217,0.0555994,135.35,135.32,0.04906369]
[1740616542413,0.0555994,135.35,135.24,2.0429]
[1740616542618,192.0,135.34,135.24,2.0429]
[1740616542818,1.9465,135.33,135.24,2.0429]
[1740616543628,192.0,135.34,135.27,0.05235808]
[1740616543629,0.04672361,135.3,135.27,0.05235808]
[1740616545827,2.0194,135.38,135.27,12.45235808]
[1740616546031,1.9331,135.41,135.27,12.45235808]
[1740616546330,1.9331,135.41,135.27,12.4]
[1740616546731,9.3286,135.41,135.34,7.3986]
[1740616547031,7.3955,135.41,135.34,7.3986]
[1740616547227,0.04951963,135.39,135.36,0.04736436]
[1740616547624,2.0519,135.43,135.26,1.994]
[1740616547827,2.0519,135.43,135.36,6.779e-05]
[1740616547828,7.3973,135.37,135.36,6.779e-05]
[1740616548027,12.4,135.37,135.24,2.0429]
[1740616548230,198.0021,135.36,135.19,4.0087]
[1740616548428,7.4009,135.31,135.19,4.0087]
[1740616548628,198.0021,135.36,135.19,4.0087]
[1740616548830,6.0021,135.36,135.19,4.0087]
[1740616549135,0.05215446,135.29,135.27,0.04968169]
[1740616549527,7.3997,135.33,135.27,7.4023]
[1740616549833,0.05301058,135.29,135.27,0.04968169]
[1740616550336,6.0021,135.36,135.27,0.04968169]
[1740616550528,6.0021,135.36,135.26,2.0692]
[1740616551330,415.57477486,135.59,135.26,2.0692]
[1740616551528,415.57477486,135.59,135.3,0.05242186]
[1740616551529,0.05235156,135.32,135.3,0.05242186]
[1740616551729,3.7975,135.41,135.27,1.9068]
[1740616551938,7.396,135.4,135.33,7.3991]
[1740616552436,9.3245,135.41,135.34,7.3986]
[1740616552637,1.9292,135.41,135.27,1.9068]
[1740616552936,0.05451741,135.35,135.33,0.048736]
[1740616553234,1.9292,135.41,135.33,0.048736]
[1740616553429,0.05308907,135.35,135.33,0.048736]
[1740616553937,0.05064257,135.35,135.33,0.048736]
[1740616554136,0.05064257,135.35,135.34,7.3989]
[1740616554339,1.9292,135.41,135.33,0.048736]
[1740616554837,1.9292,135.41,135.35,7.3983]
[1740616555035,7.3948,135.42,135.35,7.3983]
[1740616555337,7.3948,135.42,135.34,1.87]
[1740616555537,0.05106397,135.4,135.37,0.05233793]
[1740616556737,0.05106397,135.4,135.31,201.06]
[1740616557134,192.0,135.43,135.31,201.06]
[1740616557342,12.38,135.42,135.24,14.4414]
[1740616557538,192.0,135.41,135.24,14.4414]
[1740616557939,0.04940677,135.35,135.33,0.04969456]
[1740616558136,22.19,135.38,135.24,2.0614]
[1740616558340,1.9859,135.37,135.23,201.04]
[1740616558840,7.4011,135.31,135.25,7.4034]
[1740616559034,7.4011,135.31,135.23,201.04]
[1740616559242,0.05593609,135.29,135.27,0.05502375]
[1740616559737,0.05476131,135.29,135.27,7.45772375]
[1740616560342,0.05476131,135.29,135.27,0.05502375]
[1740616561245,192.0,135.4,135.27,34.61502375]
[1740616561543,93.43161168,135.45,135.28,4.0038]
[1740616561544,2.0064,135.41,135.28,4.0038]
[1740616561938,7.3964,135.39,135.32,7.4]
[1740616562442,2.0064,135.41,135.34,0.05474295]
[1740616562443,0.05227984,135.37,135.34,0.05474295]
[1740616562645,7.44957984,135.37,135.34,0.05474295]
[1740616563145,7.3984,135.35,135.34,0.05474295]
[1740616563344,22.16,135.35,135.24,1.8728]
[1740616563539,1.9631,135.34,135.23,201.04]
[1740616563734,7.401,135.31,135.23,208.4449]
[1740616563940,1.9631,135.34,135.23,201.04]
[1740616564141,1.9631,135.34,135.23,202.9128]
[1740616564537,0.04725007,135.3,135.27,0.04985223]
[1740616564842,7.3989,135.35,135.25,12.38]
[1740616565047,0.0529473,135.3,135.27,7.45287799]
[1740616565244,0.0529473,135.3,135.27,0.05047799]
[1740616567347,7.4541473,135.3,135.27,0.05047799]
[1740616567939,0.0529473,135.3,135.27,0.05047799]
[1740616568345,0.0529473,135.3,135.16,98.7730134]
[1740616568346,192.0,135.29,135.16,98.7730134]
[1740616568647,196.0254,135.28,135.16,82.40418119]
[1740616569045,7.4059,135.22,135.16,89.81258119]
[1740616569244,196.0254,135.28,135.16,82.40418119]
[1740616569443,192.0,135.27,135.16,80.34288119]
[1740616569646,7.4055,135.22,135.21,0.0510076]
[1740616569850,214.18,135.22,135.16,80.34288119]
[1740616570147,7.4071,135.2,135.16,80.34288119]
[1740616570451,192.0,135.22,135.16,80.34288119]
[1740616570652,7.4073,135.19,135.16,80.34288119]
[1740616570852,7.4073,135.19,135.13,263.19124291]
[1740616570853,7.4073,135.19,135.13,7.4103]
[1740616571053,7.4542252,135.19,135.12,7.4108]
[1740616571555,0.0469252,135.19,135.11,1.9062]
[1740616571755,0.0469252,135.19,135.15,7.409]
[1740616572056,0.0469252,135.19,135.11,1.9062]
[1740616573048,7.4086,135.17,135.11,1.9062]
[1740616573449,0.04998117,135.15,135.11,1.9062]
[1740616575055,1.969,135.25,135.11,1.9062]
[1740616575251,7.4051,135.23,135.11,1.9062]
[1740616575555,1.9615,135.28,135.12,1.36083103]
[1740616575755,1.9615,135.28,135.13,12.42]
[1740616575955,1.9615,135.28,135.14,1.36083103]
[1740616576158,0.05677312,135.22,135.19,0.05216785]
[1740616576355,7.4029,135.27,135.19,0.05216785]
[1740616576558,2.0439,135.3,135.14,1.36083103]
[1740616577152,7.4022,135.28,135.2,7.4062]
[1740616577351,2.0439,135.3,135.14,1.36083103]
[1740616577547,0.05640186,135.25,135.23,7.45564971]
[1740616577754,192.0,135.35,135.2,12.4]
[1740616577952,210.4839,135.38,135.21,3.9322]
[1740616578151,7.398,135.36,135.29,7.4017]
[1740616578357,7.398,135.36,135.21,3.9322]
[1740616578760,198.0639,135.38,135.28,7.4021]
[1740616578961,0.05633841,135.3,135.27,0.0534497]
[1740616579258,0.05633841,135.3,135.21,3.9322]
[1740616579259,2.0317,135.38,135.28,12.42]
[1740616579455,0.05237209,135.3,135.29,3.9322]
[1740616579654,2.0204,135.42,135.34,7.3989]
[1740616579855,2.0317,135.45,135.29,205.1322]
[1740616580451,7.3936,135.44,135.29,205.1322]
[1740616580651,2.0317,135.45,135.29,205.1322]
[1740616580854,0.05485416,135.38,135.35,0.05607282]
[1740616581154,2.0317,135.45,135.29,205.1322]
[1740616581351,0.05551026,135.38,135.35,0.04687927]
[1740616581660,2.0317,135.45,135.29,205.1322]
[1740616581864,0.04843157,135.38,135.35,0.04832534]
[1740616582052,2.0317,135.45,135.29,205.1322]
[1740616582357,0.04888418,135.38,135.35,0.05290374]
[1740616582561,2.0317,135.45,135.29,205.1322]
[1740616582757,0.05652896,135.38,135.35,0.05644302]
[1740616582957,9.4247,135.45,135.35,7.398]
[1740616583151,0.04916685,135.38,135.36,1.9056]
[1740616583355,2.0204,135.47,135.36,1.9056]
[1740616583562,7.3925,135.46,135.36,9.303]
[1740616583757,2.0204,135.47,135.36,1.9056]
[1740616583957,2.0204,135.47,135.37,1.896]
[1740616584665,0.05502441,135.43,135.41,0.04972459]
[1740616585660,7.44952441,135.43,135.41,0.04972459]
[1740616585853,0.05502441,135.43,135.41,0.04972459]
[1740616586259,0.05502441,135.43,135.4,7.3956]
[1740616586458,2.0563,135.46,135.32,1.8962]
[1740616586656,7.3931,135.45,135.32,1.8962]
[1740616587056,2.0563,135.46,135.32,1.8962]
[1740616587257,7.45274345,135.4,135.37,0.05604505]
[1740616587661,0.05664345,135.4,135.37,0.05604505]
[1740616587959,7.3968,135.38,135.37,0.05604505]
[1740616588552,7.3985,135.35,135.3,3.7965]
[1740616588756,192.0,135.39,135.29,201.2]
[1740616588958,192.0,135.39,135.24,12.38]
[1740616588959,36.6117,135.38,135.24,12.38]
[1740616589160,7.4026,135.28,135.22,5.6795]
[1740616589366,38.6002,135.38,135.22,1.8981]
[1740616589559,38.6002,135.38,135.21,281.40288119]
[1740616589759,0.05054282,135.31,135.29,0.0490664]
[1740616589961,0.05054282,135.31,135.21,201.06]
[1740616590260,1.32807038,135.37,135.21,201.06]
[1740616590565,12.38,135.37,135.21,201.06]
[1740616590961,0.05322221,135.3,135.25,7.4037]
[1740616591159,0.05322221,135.3,135.28,0.05352005]
[1740616592560,7.45442221,135.3,135.28,0.05352005]
[1740616592764,0.05322221,135.3,135.21,201.06]
[1740616592956,0.05322221,135.3,135.15,3.779]
[1740616592957,12.38,135.3,135.15,3.779]
[1740616593161,193.8707,135.29,135.18,7.4073]
[1740616593362,193.8707,135.29,135.16,2.0191]
[1740616593866,192.0,135.28,135.15,3.779]
[1740616594067,7.4059,135.22,135.21,0.04766478]
[1740616594266,7.4059,135.22,135.15,3.779]
[1740616594470,0.04957169,135.24,135.15,3.779]
[1740616594765,7.4051,135.23,135.15,3.779]
[1740616595264,1.99,135.28,135.15,3.779]
[1740616595466,0.04676313,135.2,135.15,3.779]
[1740616595663,1.99,135.28,135.15,3.779]
[1740616595862,7.4046,135.24,135.15,3.779]
[1740616596063,0.05500726,135.23,135.15,3.779]
[1740616596264,0.05500726,135.23,135.22,7.4055]
[1740616596662,12.4,135.34,135.17,12.4]
[1740616596858,2.0705,135.35,135.17,12.4]
[1740616597064,14.4705,135.35,135.17,12.4]
[1740616597266,7.4059,135.22,135.15,11.1879]
[1740616597457,36.6605,135.35,135.15,3.779]
[1740616597768,1.32855857,135.34,135.15,3.779]
[1740616598066,7.4039,135.25,135.24,0.05238121]
[1740616598265,12.4,135.28,135.15,3.779]
[1740616598465,7.4056,135.22,135.16,7.4086]
[1740616598868,7.4047,135.24,135.17,7.4078]
[1740616599469,0.04820145,135.22,135.17,7.4078]
[1740616599864,0.04820145,135.22,135.16,7.4086]
[1740616600469,0.04820145,135.22,135.15,3.779]
[1740616601759,0.04820145,135.22,135.13,203.0991]
[1740616601965,0.04820145,135.22,135.1,1.8992]
[1740616602164,204.4,135.21,135.1,1.8992]
[1740616602366,0.05152453,135.17,135.05,201.2]
[1740616602766,1.8681,135.19,135.05,201.2]
[1740616602967,1.8681,135.19,135.06,7.414]
[1740616602968,7.46382346,135.12,135.06,7.414]
[1740616603168,0.05252346,135.12,135.05,201.2]
[1740616603368,7.4116,135.11,135.05,208.6144]
[1740616603668,0.05252346,135.12,135.05,201.2]
[1740616604061,7.46362346,135.12,135.05,208.6144]
[1740616604772,0.05252346,135.12,135.06,7.4139]
[1740616604970,0.05252346,135.12,135.05,201.2]
[1740616605371,7.4121,135.1,135.04,3.8811]
[1740616605870,0.05106441,135.08,135.04,3.8811]
[1740616606472,0.05106441,135.08,135.03,2.0023]
[1740616607172,12.38,135.17,135.04,0.04975112]
[1740616607378,7.411,135.12,135.05,7.4144]
[1740616607870,7.411,135.12,135.03,2.0023]
[1740616608071,7.411,135.12,135.04,7.4152]
[1740616608267,0.05083554,135.09,135.06,0.04991404]
[1740616608667,12.38,135.17,135.06,7.4142]
[1740616608868,0.05020926,135.09,135.06,7.46955977]
[1740616609067,7.4104,135.14,135.06,7.4142]
[1740616609276,7.46353121,135.09,135.06,0.05609816]
[1740616609775,7.413,135.09,135.03,2.0023]
[1740616610077,0.05450277,135.09,135.06,0.04988695]
[1740616611073,7.46730277,135.09,135.06,0.04988695]
[1740616611375,0.05450277,135.09,135.06,0.04988695]
[1740616611773,192.0,135.16,135.06,0.04988695]
[1740616611974,1.9763,135.18,135.06,0.04988695]
[1740616612170,1.9763,135.18,135.04,14.3134]
[1740616612975,0.04876976,135.12,135.1,0.05505922]
[1740616613173,7.4099,135.14,135.1,0.05505922]
[1740616613374,0.05289213,135.12,135.1,0.05505922]
[1740616614679,1.8793,135.2,135.11,7.4115]
[1740616614881,1.8793,135.2,135.1,0.05505922]
[1740616615178,1.8793,135.2,135.14,7.4098]
[1740616615380,2.0107,135.22,135.08,201.38]
[1740616615771,9.4163,135.22,135.08,201.38]
[1740616615973,0.04770468,135.16,135.14,0.04668323]
[1740616616177,12.38,135.27,135.14,0.04668323]
[1740616616383,34.63,135.27,135.13,1.9191]
[1740616616581,7.4068,135.2,135.13,9.3293]
[1740616616782,214.25,135.26,135.13,1.9191]
[1740616616976,22.25,135.24,135.08,201.38]
[1740616617182,22.25,135.22,135.06,1.9415]
[1740616617478,7.4103,135.14,135.07,7.4137]
[1740616618183,12.38,135.19,135.07,1.9699]
[1740616618683,0.04967237,135.14,135.12,0.05357472]
[1740616618980,12.38,135.19,135.12,0.05357472]
[1740616619184,0.04835797,135.14,135.13,7.4104]
[1740616619387,3.9475,135.2,135.12,0.05357472]
[1740616619580,0.04717198,135.15,135.12,0.05357472]
[1740616619782,12.38,135.24,135.12,0.05357472]
[1740616619986,5.9053,135.25,135.08,12.38]
[1740616620383,7.4046,135.24,135.18,7.4074]
[1740616620581,5.9053,135.25,135.11,201.36]
[1740616620885,0.0501247,135.19,135.17,0.0540611]
[1740616621288,5.9053,135.25,135.17,0.0540611]
[1740616621484,0.0513727,135.19,135.17,0.0540611]
[1740616621690,5.9053,135.25,135.17,0.0540611]
[1740616621880,0.0549614,135.19,135.17,0.0540611]
[1740616622084,1.9278,135.31,135.17,0.0540611]
[1740616622494,1.9278,135.31,135.16,3.8632]
[1740616623397,0.05322465,135.25,135.22,0.05646226]
[1740616623596,1.9278,135.31,135.16,3.8632]
[1740616623897,0.05339216,135.25,135.22,0.05496688]
[1740616624091,1.9278,135.31,135.16,3.8632]
[1740616624289,4.0171,135.32,135.16,3.8632]
[1740616624493,0.05672394,135.25,135.22,0.05616014]
[1740616624994,0.05185156,135.25,135.22,0.05684816]
[1740616625591,4.0171,135.32,135.22,0.05684816]
[1740616625786,4.0171,135.32,135.18,1.9121]
[1740616626396,7.4054,135.23,135.18,1.9121]
[1740616626596,12.4,135.3,135.16,3.8632]
[1740616626895,0.0497924,135.22,135.19,0.04797644]
[1740616627096,7.4066,135.2,135.19,0.04797644]
[1740616627293,1.8688,135.29,135.12,14.3019]
[1740616627294,214.25,135.28,135.12,1.9019]
[1740616627494,0.04960758,135.21,135.18,0.0543851]
[1740616627898,192.0,135.27,135.12,1.9019]
[1740616628097,0.049724,135.21,135.18,0.05046054]
[1740616628299,0.049724,135.21,135.12,1.9019]
[1740616628493,12.42,135.23,135.11,201.28]
[1740616628693,192.0,135.22,135.08,80.34288119]
[1740616628889,192.0,135.22,135.09,1.9252]
[1740616629099,1.9279,135.24,135.09,1.9252]
[1740616629300,7.4056,135.22,135.09,1.9252]
[1740616629494,0.05258994,135.18,135.15,0.04861527]
[1740616629802,192.0,135.28,135.14,201.28]
[1740616630001,9.2707,135.29,135.14,201.28]
[1740616630002,3.9272,135.29,135.15,1.9756]
[1740616631100,0.0568083,135.23,135.21,0.04947651]
[1740616631299,7.4026,135.28,135.21,0.04947651]
[1740616631597,3.9272,135.29,135.21,0.04947651]
[1740616631598,0.04891692,135.23,135.21,0.04947651]
[1740616631801,7.404,135.25,135.21,0.04947651]
[1740616632003,2.0584,135.29,135.21,0.04947651]
[1740616632202,0.05452073,135.24,135.21,0.04947651]
[1740616632999,0.05452073,135.24,135.14,201.28]
[1740616633299,193.9664,135.27,135.09,1.8965]
[1740616633493,7.4087,135.17,135.11,7.4115]
[1740616633699,192.0,135.23,135.09,1.8965]
[1740616633998,7.4084,135.17,135.11,7.4111]
[1740616634199,0.05557408,135.17,135.15,0.05084028]
[1740616634400,0.05557408,135.17,135.08,2.0099]
[1740616634601,7.4098,135.15,135.09,7.4122]
[1740616634999,7.4098,135.15,135.08,2.0099]
[1740616635203,7.4078,135.18,135.08,2.0099]
[1740616635394,1.8897,135.21,135.08,2.0099]
[1740616635597,1.8897,135.21,135.16,7.4083]
[1740616635795,1.8897,135.21,135.11,12.46]
[1740616635996,1.8897,135.21,135.17,0.05132892]
[1740616636403,0.0476546,135.2,135.17,0.05132892]
[1740616638504,7.4074,135.19,135.17,0.05132892]
[1740616638705,0.0476546,135.2,135.17,0.05132892]
[1740616640305,0.0476546,135.2,135.19,7.4072]
[1740616640704,1.9374,135.26,135.21,7.4057]
[1740616641408,7.4023,135.28,135.22,7.4053]
[1740616641611,5.9596,135.31,135.18,18.1911]
[1740616641913,0.05012318,135.26,135.24,7.45702765]
[1740616642209,5.9596,135.31,135.24,7.45702765]
[1740616642407,0.04760176,135.26,135.24,0.05282765]
[1740616642610,7.4021,135.29,135.24,0.05282765]
[1740616642902,0.05376211,135.26,135.24,0.05282765]
[1740616643107,5.9596,135.31,135.24,0.05282765]
[1740616643308,0.05469158,135.26,135.24,0.05282765]
[1740616643510,5.9596,135.31,135.24,0.05282765]
[1740616643710,0.05189126,135.26,135.24,0.05282765]
[1740616643909,7.4039,135.25,135.24,0.05282765]
[1740616644210,192.0,135.24,135.06,195.0]
[1740616644410,7.4083,135.17,135.1,7.4119]
[1740616644805,1.8771,135.23,135.1,7.4119]
[1740616645007,7.4081,135.18,135.1,7.4119]
[1740616645207,7.46471523,135.18,135.15,0.05303378]
[1740616646111,7.4083,135.17,135.15,0.05303378]
[1740616647107,0.05661523,135.18,135.1,1.9334]
[1740616647312,12.48,135.2,135.09,80.34288119]
[1740616647511,12.48,135.2,135.07,123.2097981]
[1740616647512,12.48,135.2,135.07,4.0687]
[1740616648314,7.46104992,135.15,135.12,0.05067913]
[1740616648714,0.05154992,135.15,135.12,0.05067913]
[1740616650611,7.4099,135.14,135.12,0.05067913]
[1740616651621,7.46094992,135.15,135.12,0.05067913]
[1740616651820,0.05154992,135.15,135.12,0.05067913]
[1740616652824,40.52580584,135.25,135.12,0.05067913]
[1740616653022,40.52580584,135.25,135.09,12.46]
[1740616653321,40.52580584,135.25,135.1,1.36108697]
[1740616653724,40.52580584,135.25,135.11,3.9262]
[1740616653924,0.0532124,135.19,135.16,7.45652501]
[1740616654223,40.52580584,135.25,135.11,3.9262]
[1740616654224,12.46,135.24,135.11,3.9262]
[1740616654422,7.4077,135.18,135.16,0.04704251]
[1740616655422,7.45773652,135.19,135.16,0.04704251]
[1740616655625,0.05043652,135.19,135.16,0.04704251]
[1740616660224,1.921,135.28,135.16,22.24704251]
[1740616660526,42.50280584,135.32,135.17,1.360882]
[1740616660722,42.50280584,135.32,135.15,201.32]
[1740616660928,42.50280584,135.32,135.26,7.4029]
[1740616661128,42.50280584,135.32,135.21,12.46]
[1740616661324,0.05254533,135.3,135.28,0.0470703]
[1740616661629,0.05254533,135.3,135.28,0.05172369]
[1740616667930,0.05254533,135.3,135.21,14.3477]
[1740616668129,7.4,135.33,135.24,7.404]
[1740616668327,7.4,135.33,135.21,14.3477]
[1740616668527,2.013,135.36,135.21,14.3477]
[1740616668727,2.013,135.36,135.24,7.4042]
[1740616669027,0.05424342,135.31,135.29,0.04922639]
[1740616669232,2.013,135.36,135.29,0.04922639]
[1740616669233,7.3993,135.34,135.29,0.04922639]
[1740616669429,0.04977979,135.31,135.29,0.04922639]
[1740616670228,192.0,135.42,135.29,22.22922639]
[1740616670229,1.8691,135.4,135.29,22.22922639]
[1740616670433,26.17780584,135.44,135.3,2.0454]
[1740616670625,26.17780584,135.44,135.3,6.1356]
[1740616671023,7.3974,135.37,135.3,6.1356]
[1740616671227,48.42780584,135.44,135.3,6.1356]
[1740616671528,48.42780584,135.44,135.36,9.333e-05]
[1740616671529,7.3973,135.37,135.36,9.333e-05]
[1740616672040,29.5573,135.37,135.36,9.333e-05]
[1740616672927,7.3973,135.37,135.36,9.333e-05]
[1740616673329,29.5573,135.37,135.36,9.333e-05]
[1740616675632,35.5454,135.37,135.36,9.333e-05]
[1740616676027,13.3854,135.37,135.36,9.333e-05]
[1740616676332,35.5454,135.37,135.36,9.333e-05]
[1740616678537,57.7954,135.37,135.36,9.333e-05]
[1740616678734,35.5454,135.37,135.36,9.333e-05]
[1740616679134,59.12339697,135.37,135.36,9.333e-05]
[1740616679435,57.7954,135.37,135.36,9.333e-05]
[1740616679635,59.12338979,135.37,135.36,9.333e-05]
[1740616680538,57.7954,135.37,135.36,9.333e-05]
[1740616680939,35.5454,135.37,135.36,9.333e-05]
[1740616681636,57.7954,135.37,135.36,9.333e-05]
[1740616683543,59.12338729,135.37,135.36,9.333e-05]
[1740616684944,35.5454,135.37,135.36,9.333e-05]
[1740616685141,9.3669,135.37,135.36,9.333e-05]
[1740616685637,31.5269,135.37,135.36,9.333e-05]
[1740616686041,9.3669,135.37,135.36,9.333e-05]
[1740616686245,53.7769,135.37,135.36,9.333e-05]
[1740616688248,9.3669,135.37,135.36,9.333e-05]
[1740616688756,7.3973,135.37,135.36,9.333e-05]
[1740616691849,51.8073,135.37,135.36,9.333e-05]
[1740616692442,53.13533791,135.37,135.36,9.333e-05]
[1740616693252,30.88533791,135.37,135.36,9.333e-05]
[1740616693452,29.5573,135.37,135.36,9.333e-05]
[1740616693651,30.88531321,135.37,135.36,9.333e-05]
[1740616694351,53.13531321,135.37,135.36,9.333e-05]
[1740616694551,30.88531321,135.37,135.36,9.333e-05]
[1740616695152,51.8073,135.37,135.36,9.333e-05]
[1740616695344,53.13540219,135.37,135.36,9.333e-05]
[1740616697249,8.72540219,135.37,135.36,9.333e-05]
[1740616697448,30.97540219,135.37,135.36,9.333e-05]
[1740616697654,53.13540219,135.37,135.36,9.333e-05]
[1740616698058,176.90938206,135.37,135.36,9.333e-05]
[1740616699058,154.65938206,135.37,135.36,9.333e-05]
[1740616699259,132.49938206,135.37,135.36,9.333e-05]
[1740616699958,131.17127987,135.37,135.36,9.333e-05]
[1740616700155,132.49931436,135.37,135.36,9.333e-05]
[1740616701055,28.90290237,135.37,135.36,9.333e-05]
[1740616701261,27.57486788,135.37,135.36,9.333e-05]
[1740616701850,13.96336788,135.37,135.36,9.333e-05]
[1740616702059,5.63626788,135.37,135.36,9.333e-05]
[1740616702260,2.52906788,135.37,135.36,9.333e-05]
[1740616702762,1.40486788,135.37,135.36,9.333e-05]
[1740616703562,81.10670238,135.38,135.36,9.333e-05]
[1740616703563,0.0550907,135.38,135.36,9.333e-05]
[1740616706063,0.0550907,135.38,135.37,7.3973]
[1740616706364,19.81194039,135.45,135.36,22.16009333]
[1740616706564,19.81194039,135.45,135.31,12.3]
[1740616706755,19.81194039,135.45,135.38,7.3963]
[1740616707461,0.05375104,135.43,135.4,0.04872053]
[1740616709165,0.05375104,135.43,135.3,201.12]
[1740616709459,14.2934,135.44,135.3,201.12]
[1740616709659,14.2934,135.44,135.25,13.77874306]
[1740616709859,14.2934,135.44,135.29,80.34288119]
[1740616710262,14.2934,135.44,135.33,7.399]
[1740616710263,7.3964,135.39,135.33,7.399]
[1740616710464,0.05402507,135.38,135.35,0.04678915]
[1740616710665,14.2934,135.44,135.29,80.34288119]
[1740616710861,0.05381351,135.38,135.35,0.04698272]
[1740616711063,14.2934,135.44,135.29,80.34288119]
[1740616711264,0.04667499,135.38,135.35,0.05662943]
[1740616711468,1.885,135.47,135.35,22.16]
[1740616711762,14.7773,135.53,135.35,0.05488865]
[1740616711967,30.84509147,135.49,135.32,12.3]
[1740616712366,30.84509147,135.49,135.38,7.3964]
[1740616712367,7.3936,135.44,135.38,7.3964]
[1740616712567,30.84509147,135.49,135.38,7.3964]
[1740616712770,0.04952643,135.42,135.4,0.05148037]
[1740616712970,7.3941,135.43,135.32,12.3]
[1740616713165,0.04727545,135.42,135.4,0.05525515]
[1740616713374,7.3951,135.41,135.32,12.3]
[1740616713571,7.3951,135.41,135.4,0.0549868]
[1740616713767,0.04932691,135.38,135.34,7.3989]
[1740616713970,7.3961,135.4,135.34,7.3989]
[1740616714165,0.05686305,135.37,135.35,0.04927132]
[1740616714365,0.05686305,135.37,135.32,12.3]
[1740616714366,1.8939,135.48,135.32,12.3]
[1740616714567,0.05024969,135.37,135.35,0.0479131]
[1740616714871,0.05081267,135.37,135.35,0.0518229]
[1740616718871,0.05081267,135.37,135.35,29.6098229]
[1740616719074,0.05081267,135.37,135.35,22.2118229]
[1740616719474,0.05081267,135.37,135.36,7.3979]
[1740616719870,0.05081267,135.37,135.36,29.5579]
[1740616722275,1.267e-05,135.37,135.36,29.5579]
[1740616727880,81.05161168,135.58,135.36,22.16]
[1740616728085,85.00611168,135.58,135.37,1.358335]
[1740616728377,7.387,135.56,135.38,1.358335]
[1740616728583,7.387,135.56,135.49,7.3903]
[1740616728778,34.79959147,135.58,135.39,207.22]
[1740616728980,0.05037378,135.54,135.51,0.04762721]
[1740616729180,34.79959147,135.58,135.4,1.35794969]
[1740616729379,0.05435504,135.54,135.51,0.05555459]
[1740616729582,34.79959147,135.58,135.41,1.35794969]
[1740616729784,7.44217532,135.54,135.51,0.04953183]
[1740616729985,34.79959147,135.58,135.4,195.0]
[1740616730185,0.05410205,135.54,135.51,0.05571134]
[1740616730383,34.79959147,135.58,135.48,7.3912]
[1740616730686,0.05465342,135.54,135.51,0.05104052]
[1740616730890,0.05465342,135.54,135.51,7.44064052]
[1740616731078,0.05465342,135.54,135.51,0.05104052]
[1740616731479,0.05465342,135.54,135.53,7.3886]
[1740616731886,0.05465342,135.54,135.53,29.5286]
[1740616733187,5.342e-05,135.54,135.53,29.5286]
[1740616733384,5.342e-05,135.54,135.53,41.7286]
[1740616735590,12.04410785,135.66,135.61,7.3838]
[1740616735787,12.04410785,135.66,135.56,200.86]
[1740616735992,1.8746,135.66,135.56,200.86]
[1740616736192,1.9765,135.67,135.62,7.3836]
[1740616736388,1.9765,135.67,135.56,200.86]
[1740616736692,1.9765,135.67,135.61,7.3841]
[1740616736894,0.05223981,135.63,135.6,0.05235819]
[1740616740592,0.05223981,135.63,135.62,7.3837]
[1740616740793,3.981e-05,135.63,135.62,7.3837]
[1740616741193,3.981e-05,135.63,135.62,29.5037]
[1740616742090,3.796,135.76,135.62,22.12]
[1740616742290,3.796,135.76,135.6,12.23235819]
[1740616742595,3.796,135.76,135.69,7.3794]
[1740616742796,3.796,135.76,135.6,12.18]
[1740616743296,0.05456344,135.69,135.67,0.05646722]
[1740616743689,7.3792,135.71,135.61,12.18]
[1740616743885,0.04923738,135.69,135.67,0.04921322]
[1740616744194,3.796,135.76,135.61,12.18]
[1740616744390,0.04919723,135.69,135.67,0.05244501]
[1740616744586,0.04919723,135.69,135.62,1.47470874]